bitfinex-derivatives/quotes_SOLF0:USTF0_20250903
["timestamp","ask_amount","ask_price","bid_price","bid_amount"]
[1756938702524,74.0,208.98,208.89,7.64]
[1756938702730,3.36414583,208.97,208.89,7.64]
[1756938702933,74.0,208.98,208.89,7.64]
[1756938703134,3.36414583,208.97,208.89,7.64]
[1756938703335,74.0,208.98,208.89,7.64]
[1756938703633,3.36470315,208.97,208.89,7.64]
[1756938703838,74.0,208.98,208.89,7.64]
[1756938704032,3.36470315,208.97,208.89,7.64]
[1756938704234,3.36470315,208.96,208.89,7.64]
[1756938704430,81.41,208.98,208.89,7.64]
[1756938704627,3.36534777,208.97,208.89,7.64]
[1756938704926,3.36534777,208.96,208.89,7.64]
[1756938705129,81.41,208.98,208.89,7.64]
[1756938705337,3.36534777,208.97,208.89,7.64]
[1756938705633,3.36534777,208.96,208.89,7.64]
[1756938705835,81.41,208.98,208.89,7.64]
[1756938706035,3.36542313,208.97,208.89,7.64]
[1756938706235,3.36542313,208.96,208.89,7.64]
[1756938706436,81.41,208.98,208.89,7.64]
[1756938706737,3.36549937,208.97,208.89,7.64]
[1756938706938,3.36549937,208.96,208.89,7.64]
[1756938707140,81.41,208.98,208.89,7.64]
[1756938707438,3.36622505,208.97,208.89,7.64]
[1756938707633,3.36622505,208.96,208.89,7.64]
[1756938707937,81.41,208.98,208.89,7.64]
[1756938708139,3.36726568,208.97,208.89,7.64]
[1756938708342,3.36726568,208.96,208.89,7.64]
[1756938708536,3.36726568,208.95,208.89,7.64]
[1756938708737,81.41,208.98,208.89,7.64]
[1756938709037,3.36840882,208.97,208.89,7.64]
[1756938709240,3.36840882,208.96,208.89,7.64]
[1756938709431,3.36840882,208.95,208.89,7.64]
[1756938709633,81.41,208.98,208.89,7.64]
[1756938709833,3.37255305,208.97,208.89,7.64]
[1756938710041,7.41,209.02,208.89,7.64]
[1756938710236,5.35571998,209.05,208.95,7.64]
[1756938710237,3.37232797,209.01,208.95,7.64]
[1756938710433,7.41,209.05,208.97,7.64]
[1756938710636,3.37155322,209.04,208.97,7.64]
[1756938710838,7.41,209.05,208.97,7.64]
[1756938711243,7.41,209.05,208.97,2.26528001]
[1756938711441,7.41,209.05,209.0,1.44968856]
[1756938711641,7.41,209.05,209.01,7.64]
[1756938711842,7.41,209.09,209.02,1.44968856]
[1756938712038,7.41,209.09,209.01,9.08968856]
[1756938712538,7.41,209.07,208.99,16.42968856]
[1756938712740,7.41,209.07,208.99,1.44968856]
[1756938716840,7.41,209.07,209.0,7.64]
[1756938718246,7.41,209.07,209.01,1.44968856]
[1756938718542,7.41,209.07,209.0,7.64]
[1756938718745,7.41,209.07,209.01,1.44968856]
[1756938720445,1.44968856,209.12,209.04,7.64]
[1756938720646,7.41,209.11,209.04,7.64]
[1756938721848,1.44968856,209.1,209.03,1.44968856]
[1756938722147,7.41,209.09,209.03,1.44968856]
[1756938722752,7.41,209.09,209.02,1.44968856]
[1756938723245,7.41,209.13,209.06,1.44968856]
[1756938731764,8.85968856,209.13,209.06,1.44968856]
[1756938734568,7.41,209.13,209.06,9.43968856]
[1756938735766,81.38,209.14,209.08,1.44968856]
[1756938736967,81.38,209.14,209.06,1.44968856]
[1756938737462,7.38,209.13,209.03,88.9538]
[1756938737768,7.38,209.13,209.06,1.44968856]
[1756938741964,7.38,209.13,209.08,1.44968856]
[1756938742371,74.0,209.14,209.08,1.44968856]
[1756938742773,7.38,209.13,209.08,1.44968856]
[1756938742968,7.38,209.13,209.06,1.44968856]
[1756938743169,1.44968856,209.09,209.01,7.99]
[1756938743370,7.38,209.08,209.02,1.44968856]
[1756938749576,81.38,209.12,209.06,1.44968856]
[1756938749875,81.38,209.12,209.05,7.99]
[1756938750068,74.0,209.12,209.07,1.44968856]
[1756938750265,7.38,209.11,209.07,9.43968856]
[1756938750668,7.38,209.16,209.09,1.44968856]
[1756938751966,7.38,209.16,209.11,1.44968856]
[1756938752169,7.38,209.17,209.11,1.44968856]
[1756938752371,74.0,209.18,209.13,1.44968856]
[1756938753281,74.0,209.22,209.16,1.44968856]
[1756938753976,7.38,209.21,209.14,1.44968856]
[1756938756577,81.38,209.22,209.16,1.44968856]
[1756938759872,7.38,209.26,209.2,1.44968856]
[1756938761173,7.38,209.26,209.18,7.99]
[1756938761370,7.38,209.29,209.22,1.44968856]
[1756938769489,7.38,209.29,209.1,321.28]
[1756938769490,1.44968856,209.28,209.1,321.28]
[1756938769686,74.0,209.33,209.1,321.28]
[1756938769687,1.44968856,209.26,209.18,1.44968856]
[1756938769988,7.8,209.25,209.18,1.44968856]
[1756938770589,7.8,209.25,209.18,9.12968856]
[1756938771092,7.8,209.25,209.2,1.44968856]
[1756938771293,7.8,209.25,209.21,7.68]
[1756938772094,7.8,209.28,209.22,1.44968856]
[1756938773491,7.8,209.28,209.21,7.68]
[1756938776697,94.52,209.37,209.21,7.68]
[1756938776698,7.8,209.35,209.21,7.68]
[1756938776895,7.8,209.35,209.24,7.68]
[1756938778700,7.8,209.35,209.25,7.68]
[1756938778998,7.8,209.35,209.27,7.68]
[1756938780799,7.8,209.35,209.27,10.14595935]
[1756938783698,2.46595935,209.38,209.27,7.68]
[1756938783999,7.8,209.37,209.27,7.68]
[1756938785902,74.0,209.36,209.27,7.68]
[1756938786104,7.8,209.35,209.27,7.68]
[1756938790110,7.8,209.35,209.27,10.14595935]
[1756938790308,7.8,209.35,209.28,7.68]
[1756938792808,74.0,209.36,209.28,7.68]
[1756938793008,74.0,209.36,209.31,7.7]
[1756938793913,81.34,209.41,209.31,7.7]
[1756938797209,7.34,209.41,209.34,7.7]
[1756938804923,74.0,209.46,209.33,48.48595935]
[1756938804924,7.34,209.45,209.37,7.7]
[1756938814926,7.34,209.46,209.34,10.16595935]
[1756938815121,2.46595935,209.47,209.35,25.94]
[1756938815526,2.46595935,209.47,209.34,10.16595935]
[1756938815728,7.34,209.46,209.34,10.16595935]
[1756938815929,2.46595935,209.47,209.34,10.16595935]
[1756938816127,7.34,209.46,209.34,10.16595935]
[1756938816733,2.46595935,209.47,209.34,10.16595935]
[1756938817424,7.34,209.46,209.34,10.16595935]
[1756938817731,2.46595935,209.47,209.34,10.16595935]
[1756938818532,81.34,209.46,209.34,10.16595935]
[1756938818831,7.34,209.45,209.34,10.16595935]
[1756938819028,74.0,209.46,209.34,10.16595935]
[1756938819525,7.34,209.45,209.34,10.16595935]
[1756938819725,74.0,209.46,209.34,10.16595935]
[1756938820229,7.34,209.45,209.35,7.7]
[1756938835445,8.9158651,209.45,209.38,1.5758651]
[1756938840148,12.69571998,209.45,209.37,7.99]
[1756938840353,8.02,209.4,209.33,7.99]
[1756938840554,8.02,209.4,209.33,9.5658651]
[1756938841252,8.02,209.4,209.35,1.5758651]
[1756938841456,8.02,209.4,209.38,7.99]
[1756938845359,74.0,209.43,209.37,1.5758651]
[1756938845755,8.02,209.42,209.37,1.5758651]
[1756938845961,82.02,209.43,209.37,9.5658651]
[1756938853460,82.02,209.43,209.37,7.99]
[1756938856858,82.02,209.43,209.36,1.5758651]
[1756938857364,7.84,209.4,209.32,1.5758651]
[1756938857662,7.84,209.38,209.32,1.5758651]
[1756938864564,1.5758651,209.39,209.3,177.35130315]
[1756938864765,74.0,209.42,209.3,177.35130315]
[1756938864766,7.84,209.34,209.3,177.35130315]
[1756938865072,1.5758651,209.35,209.3,177.35130315]
[1756938865272,1.5758651,209.35,209.27,125.6758651]
[1756938865466,7.84,209.34,209.27,125.6758651]
[1756938865667,1.5758651,209.35,209.27,125.6758651]
[1756938865869,7.84,209.34,209.27,125.6758651]
[1756938866070,1.5758651,209.35,209.27,125.6758651]
[1756938866765,7.84,209.34,209.27,125.6758651]
[1756938866969,1.5758651,209.35,209.27,125.6758651]
[1756938867170,7.84,209.34,209.27,125.6758651]
[1756938870381,7.84,209.34,209.27,9.2358651]
[1756938870779,7.84,209.34,209.28,116.46]
[1756938872987,9.4158651,209.35,209.29,7.66]
[1756938873285,7.84,209.35,209.29,9.2358651]
[1756938881791,9.4158651,209.38,209.29,9.2358651]
[1756938883387,1.5758651,209.36,209.29,7.66]
[1756938883590,7.6,209.35,209.29,7.66]
[1756938889097,1.5758651,209.36,209.3,116.46]
[1756938889299,7.6,209.35,209.3,116.46]
[1756938889500,1.5758651,209.36,209.3,116.46]
[1756938889897,7.6,209.35,209.3,124.03]
[1756938890201,9.1758651,209.36,209.3,124.03]
[1756938893798,7.6,209.35,209.27,7.57]
[1756938894005,1.5758651,209.32,209.28,7.57]
[1756938894304,7.6,209.31,209.28,7.57]
[1756938894601,1.5758651,209.32,209.28,7.57]
[1756938895002,7.6,209.31,209.28,7.57]
[1756938896304,7.6,209.31,209.28,124.01]
[1756938897306,7.6,209.31,209.28,116.44]
[1756938897497,2.46506335,209.37,209.28,116.44]
[1756938897704,7.6,209.35,209.29,7.57]
[1756938904812,7.6,209.35,209.26,7.57]
[1756938905314,7.6,209.35,209.27,24.04]
[1756938905812,74.0,209.36,209.27,24.04]
[1756938906208,7.6,209.35,209.27,24.04]
[1756938906413,74.0,209.36,209.27,24.04]
[1756938906608,7.6,209.35,209.27,24.04]
[1756938907211,74.0,209.36,209.27,24.04]
[1756938907618,7.6,209.34,209.27,24.04]
[1756938908515,5.35571998,209.42,209.28,7.57]
[1756938908716,7.82078333,209.4,209.29,116.44]
[1756938909020,7.82078333,209.4,209.3,117.32]
[1756938909318,12.95571998,209.39,209.3,117.32]
[1756938909514,5.35571998,209.39,209.3,117.32]
[1756938910018,2.46506335,209.37,209.3,117.32]
[1756938910218,7.6,209.36,209.3,117.32]
[1756938911925,7.6,209.36,209.29,7.95]
[1756938912422,7.6,209.36,209.29,125.31]
[1756938916430,81.6,209.36,209.29,125.31]
[1756938919330,7.72,209.35,209.29,7.95]
[1756938920524,76.46506335,209.34,209.25,7.95]
[1756938920727,7.72,209.3,209.22,27.28]
[1756938920933,7.72,209.3,209.23,7.95]
[1756938921522,3.82338014,209.29,209.23,7.95]
[1756938921721,3.82338014,209.28,209.23,7.95]
[1756938921922,3.82338014,209.27,209.23,7.95]
[1756938922129,7.72,209.3,209.23,7.95]
[1756938922331,3.82340998,209.29,209.23,7.95]
[1756938922527,3.82340998,209.28,209.22,35.23]
[1756938922832,11.54340998,209.27,209.23,7.95]
[1756938923030,3.82340998,209.26,209.23,7.95]
[1756938923231,7.72,209.27,209.23,7.95]
[1756938923427,3.8211439,209.26,209.23,7.95]
[1756938923628,7.72,209.27,209.23,7.95]
[1756938923836,3.82120385,209.26,209.23,7.95]
[1756938924034,7.72,209.27,209.23,7.95]
[1756938924235,3.82120385,209.26,209.23,7.95]
[1756938924435,7.72,209.27,209.23,7.95]
[1756938924635,3.82001303,209.26,209.23,7.95]
[1756938924938,7.72,209.27,209.23,7.95]
[1756938925141,3.82001303,209.26,209.23,7.95]
[1756938925337,7.72,209.27,209.21,117.2]
[1756938925536,3.8188755,209.26,209.21,117.2]
[1756938925740,7.72,209.27,209.22,7.95]
[1756938925933,3.81875529,209.26,209.22,7.95]
[1756938926236,7.72,209.27,209.21,117.2]
[1756938926437,7.72,209.27,209.22,7.95]
[1756938926628,7.72,209.27,209.21,117.2]
[1756938926831,7.72,209.27,209.22,7.95]
[1756938927035,7.72,209.27,209.21,117.2]
[1756938927236,7.72,209.27,209.22,7.95]
[1756938927436,7.72,209.27,209.21,117.2]
[1756938927634,7.72,209.27,209.22,7.95]
[1756938927831,7.72,209.27,209.21,117.2]
[1756938928032,7.72,209.3,209.22,7.95]
[1756938928234,3.81732138,209.29,209.22,7.95]
[1756938928435,3.81732138,209.28,209.22,7.95]
[1756938928635,7.72,209.3,209.22,7.95]
[1756938928835,3.67071453,209.29,209.22,7.95]
[1756938929035,7.72,209.3,209.22,7.95]
[1756938929235,3.67071453,209.29,209.22,7.95]
[1756938929439,7.72,209.3,209.22,7.95]
[1756938929640,3.67032483,209.29,209.22,7.95]
[1756938929838,7.72,209.3,209.22,7.95]
[1756938930033,3.67026495,209.29,209.22,7.95]
[1756938930235,7.72,209.3,209.22,7.95]
[1756938930436,3.66992315,209.29,209.22,7.95]
[1756938930638,7.72,209.3,209.22,7.95]
[1756938930837,3.66992315,209.29,209.22,7.95]
[1756938931135,7.72,209.3,209.22,7.95]
[1756938931331,77.66992315,209.29,209.22,7.95]
[1756938931537,74.0,209.29,209.22,7.95]
[1756938935445,7.72,209.28,209.22,7.95]
[1756938935947,76.46506335,209.29,209.21,117.2]
[1756938936135,3.66906966,209.28,209.19,7.95]
[1756938936342,7.72,209.27,209.19,124.97]
[1756938936543,7.72,209.27,209.2,7.95]
[1756938936846,74.0,209.28,209.21,7.95]
[1756938941849,74.0,209.28,209.21,4.3001]
[1756938942049,74.0,209.28,209.22,7.63]
[1756938942347,7.72,209.3,209.22,7.63]
[1756938942746,7.72,209.3,209.24,7.63]
[1756938942949,74.0,209.33,209.26,7.63]
[1756938943549,74.0,209.33,209.26,10.09506335]
[1756938944647,74.0,209.33,209.27,7.63]
[1756938944849,7.7,209.34,209.27,7.63]
[1756938947054,3.67039623,209.33,209.27,29.78]
[1756938947254,2.46506335,209.37,209.27,29.78]
[1756938947456,3.67048289,209.36,209.27,29.78]
[1756938947757,10.16506335,209.34,209.21,7.63]
[1756938947958,3.67048289,209.33,209.22,34.38]
[1756938948652,3.67048289,209.33,209.21,70.49]
[1756938948859,7.7,209.3,209.21,70.49]
[1756938949160,2.46506335,209.31,209.21,70.49]
[1756938949361,7.7,209.29,209.21,70.49]
[1756938953660,7.7,209.29,209.21,7.63]
[1756938953858,7.7,209.29,209.21,42.87]
[1756938954952,74.0,209.34,209.22,7.63]
[1756938955158,7.7,209.32,209.22,7.63]
[1756938958267,3.67244099,209.31,209.22,7.63]
[1756938958471,7.7,209.32,209.22,7.63]
[1756938958768,3.67244099,209.31,209.22,7.63]
[1756938958971,7.7,209.32,209.22,7.63]
[1756938959168,7.7,209.3,209.22,7.63]
[1756938959365,7.7,209.3,209.22,43.23]
[1756938959560,7.7,209.28,209.22,7.63]
[1756938961774,1.5780961,209.27,209.17,7.63]
[1756938961980,1.5780961,209.25,209.18,1.5780961]
[1756938962166,7.7,209.24,209.18,1.5780961]
[1756938963166,7.7,209.24,209.17,7.63]
[1756938964071,7.7,209.24,209.18,1.5780961]
[1756938964572,1.5780961,209.27,209.21,7.63]
[1756938964773,3.67499295,209.26,209.21,7.63]
[1756938964974,9.2780961,209.27,209.2,9.2080961]
[1756938965275,3.67499371,209.26,209.2,9.2080961]
[1756938965463,9.2780961,209.27,209.2,9.2080961]
[1756938965667,3.67536944,209.26,209.2,9.2080961]
[1756938965870,9.2780961,209.27,209.2,7.63]
[1756938966070,3.67536944,209.26,209.2,7.63]
[1756938966372,9.2780961,209.27,209.2,7.63]
[1756938970376,7.7,209.25,209.2,7.63]
[1756938970576,7.7,209.26,209.2,7.63]
[1756938970772,7.7,209.24,209.17,1.5780961]
[1756938970976,7.7,209.24,209.16,9.2080961]
[1756938977077,74.0,209.28,209.16,7.63]
[1756938977078,7.78,209.22,209.16,7.63]
[1756938977283,7.78,209.2,209.14,163.90281178]
[1756938977480,1.5780961,209.19,209.14,163.90281178]
[1756938978581,7.78,209.18,209.14,163.90281178]
[1756938979084,1.5780961,209.19,209.14,163.90281178]
[1756938979381,7.78,209.18,209.14,163.90281178]
[1756938979578,1.5780961,209.19,209.14,163.90281178]
[1756938979981,7.78,209.18,209.14,163.90281178]
[1756938980175,1.5780961,209.19,209.14,163.90281178]
[1756938981180,7.78,209.18,209.14,163.90281178]
[1756938981581,1.5780961,209.17,209.14,163.90281178]
[1756938981978,7.78,209.16,209.14,163.90281178]
[1756938982582,7.78,209.16,209.13,124.95]
[1756938983982,7.78,209.16,209.13,116.96]
[1756938984186,7.78,209.16,209.14,7.99]
[1756938985892,7.78,209.16,209.13,116.96]
[1756938986185,7.78,209.16,209.13,124.95]
[1756938987590,7.78,209.16,209.14,7.99]
[1756938989999,7.78,209.16,209.13,7.99]
[1756938990600,7.78,209.16,209.12,116.84]
[1756938990801,7.78,209.16,209.12,116.8]
[1756938991201,1.5780961,209.17,209.12,116.8]
[1756938992503,74.0,209.26,209.15,1.5780961]
[1756938992702,1.5780961,209.23,209.15,1.5780961]
[1756938992904,1.5780961,209.23,209.12,116.8]
[1756938992905,1.5780961,209.21,209.13,1.5780961]
[1756938999305,1.5780961,209.19,209.13,116.72]
[1756939001605,1.5780961,209.19,209.11,1.5780961]
[1756939001902,1.5780961,209.17,209.1,27.84]
[1756939002103,1.5780961,209.17,209.09,1.5780961]
[1756939002498,1.5780961,209.17,209.09,118.2980961]
[1756939004304,9.3580961,209.18,209.09,118.2980961]
[1756939004906,9.3580961,209.18,209.1,7.77]
[1756939005908,9.3580961,209.18,209.1,124.45]
[1756939007501,9.3580961,209.18,209.11,7.77]
[1756939018311,7.59,209.15,209.11,7.77]
[1756939018516,1.5780961,209.12,209.06,7.77]
[1756939018713,1.5780961,209.1,209.05,163.68727056]
[1756939018913,9.1680961,209.1,209.06,7.77]
[1756939019112,9.1680961,209.1,209.05,163.68727056]
[1756939019811,9.1680961,209.1,209.06,7.77]
[1756939020016,9.1680961,209.1,209.05,163.68727056]
[1756939020216,9.1680961,209.1,209.06,7.77]
[1756939020418,7.59,209.1,209.06,7.77]
[1756939020717,7.59,209.1,209.05,163.68727056]
[1756939021313,7.59,209.1,209.06,7.77]
[1756939021514,81.59,209.14,209.06,7.77]
[1756939021711,74.0,209.14,209.06,7.77]
[1756939022911,74.0,209.14,209.07,2.26423372]
[1756939023110,74.0,209.14,209.08,7.77]
[1756939024812,74.0,209.14,209.08,124.45]
[1756939025316,81.59,209.14,209.08,124.45]
[1756939027010,5.0,209.32,209.13,5.33840578]
[1756939027216,2.26423372,209.39,209.24,7.77]
[1756939027412,2.26423372,209.42,209.27,10.03423372]
[1756939028211,2.26423372,209.45,209.3,2.26423372]
[1756939028412,2.28831492,209.44,209.31,7.77]
[1756939028618,2.28831492,209.43,209.31,7.77]
[1756939028814,2.28831492,209.42,209.31,10.03423372]
[1756939029018,7.59,209.4,209.31,10.03423372]
[1756939029323,2.28831492,209.39,209.32,4.32496197]
[1756939029522,7.59,209.4,209.33,8.8863]
[1756939029821,7.59,209.4,209.34,8.8863]
[1756939030023,17.18423372,209.45,209.35,8.8863]
[1756939030221,7.59,209.44,209.36,8.8863]
[1756939030413,7.59,209.44,209.37,8.8863]
[1756939030613,7.59,209.44,209.38,8.8863]
[1756939030815,7.59,209.44,209.39,8.8863]
[1756939031016,7.59,209.44,209.4,8.8863]
[1756939031216,7.59,209.44,209.32,2.26423372]
[1756939031217,7.59,209.44,209.41,8.8863]
[1756939031416,7.59,209.44,209.42,8.8863]
[1756939031617,7.59,209.44,209.43,4.32496197]
[1756939033720,8.07,209.44,209.31,7.77]
[1756939033920,7.51,209.41,209.32,8.88447777]
[1756939034121,7.51,209.41,209.33,4.57681633]
[1756939034319,7.51,209.41,209.34,4.57681633]
[1756939034522,7.51,209.41,209.35,4.57681633]
[1756939034818,36.1,209.42,209.36,4.57681633]
[1756939035024,7.51,209.41,209.37,4.57681633]
[1756939035324,2.26423372,209.43,209.38,4.57681633]
[1756939035619,17.13,209.42,209.39,4.57681633]
[1756939035824,17.13,209.42,209.31,7.77]
[1756939036124,17.13,209.42,209.32,4.57391878]
[1756939036328,17.13,209.42,209.33,4.57391878]
[1756939036524,17.13,209.42,209.34,4.57391878]
[1756939036724,17.13,209.42,209.35,4.57391878]
[1756939036925,17.13,209.42,209.36,4.57391878]
[1756939037124,17.13,209.42,209.37,4.57391878]
[1756939037318,17.13,209.42,209.31,7.77]
[1756939037524,17.13,209.42,209.32,4.57087288]
[1756939037725,17.13,209.42,209.33,4.57087288]
[1756939038023,17.13,209.42,209.34,4.57087288]
[1756939038326,17.13,209.42,209.35,4.57087288]
[1756939038527,17.13,209.42,209.36,4.57087288]
[1756939038728,17.13,209.42,209.37,4.57087288]
[1756939039025,17.13,209.42,209.31,7.77]
[1756939039335,17.13,209.42,209.32,4.56944554]
[1756939039624,17.13,209.42,209.33,4.56944554]
[1756939039825,17.13,209.42,209.34,4.56944554]
[1756939040026,17.13,209.42,209.35,4.56944554]
[1756939040226,17.13,209.42,209.36,4.56944554]
[1756939040530,17.13,209.42,209.31,7.77]
[1756939040829,7.51,209.39,209.32,4.56756114]
[1756939041129,7.51,209.39,209.33,4.56756114]
[1756939041318,7.51,209.39,209.34,4.56756114]
[1756939041522,7.51,209.39,209.35,4.56756114]
[1756939041730,2.26423372,209.4,209.36,4.56756114]
[1756939041925,7.51,209.39,209.31,7.77]
[1756939042224,7.51,209.39,209.32,4.56642435]
[1756939042429,7.51,209.39,209.33,4.56642435]
[1756939042629,2.26423372,209.4,209.34,4.56642435]
[1756939042831,2.26423372,209.4,209.35,4.56642435]
[1756939043028,7.51,209.39,209.36,4.56642435]
[1756939043228,7.51,209.39,209.31,7.77]
[1756939043431,7.51,209.39,209.32,4.56482203]
[1756939043730,7.51,209.39,209.33,4.56482203]
[1756939043920,7.51,209.39,209.34,4.56482203]
[1756939044119,7.51,209.39,209.35,4.56482203]
[1756939044326,2.26423372,209.4,209.36,4.56482203]
[1756939044533,7.51,209.39,209.31,7.77]
[1756939044725,7.51,209.39,209.32,4.56352469]
[1756939044924,7.51,209.39,209.33,4.56352469]
[1756939045125,2.26423372,209.4,209.34,4.56352469]
[1756939045323,2.26423372,209.4,209.35,4.56352469]
[1756939045530,7.51,209.39,209.31,7.77]
[1756939045728,7.51,209.39,209.32,4.56347642]
[1756939046023,7.51,209.39,209.33,8.80151786]
[1756939046226,20.96423372,209.4,209.34,8.80151786]
[1756939046427,20.96423372,209.4,209.35,8.80151786]
[1756939046631,7.51,209.39,209.31,7.77]
[1756939046929,7.51,209.39,209.32,8.80072147]
[1756939047131,7.51,209.39,209.33,8.80072147]
[1756939047330,20.96423372,209.4,209.34,8.80072147]
[1756939047626,20.96423372,209.4,209.35,8.80072147]
[1756939047831,7.51,209.39,209.31,7.77]
[1756939048035,7.51,209.39,209.32,8.79533599]
[1756939048230,7.51,209.39,209.33,8.79533599]
[1756939048429,20.96423372,209.4,209.34,8.79533599]
[1756939048626,7.51,209.39,209.35,8.79533599]
[1756939048832,7.51,209.39,209.31,7.77]
[1756939049134,7.51,209.39,209.32,8.79490502]
[1756939049332,7.51,209.39,209.33,8.79490502]
[1756939049530,7.51,209.39,209.34,8.79490502]
[1756939049729,7.51,209.39,209.35,8.79490502]
[1756939049929,7.51,209.39,209.28,7.99]
[1756939050128,7.51,209.39,209.29,8.79510032]
[1756939050327,7.51,209.39,209.3,8.79510032]
[1756939050535,7.51,209.36,209.31,8.79510032]
[1756939050733,2.26423372,209.37,209.32,8.79510032]
[1756939051034,2.26423372,209.37,209.33,8.79510032]
[1756939051235,2.26423372,209.37,209.34,8.79510032]
[1756939051438,7.51,209.36,209.28,7.99]
[1756939051736,7.51,209.36,209.29,8.79814975]
[1756939051936,7.51,209.36,209.3,8.79814975]
[1756939052129,7.51,209.36,209.31,8.79814975]
[1756939052437,7.51,209.36,209.32,8.79814975]
[1756939052635,2.26423372,209.37,209.33,8.79814975]
[1756939052935,7.51,209.36,209.28,7.99]
[1756939053232,7.51,209.36,209.29,8.79922093]
[1756939053433,7.51,209.36,209.28,7.99]
[1756939053434,7.51,209.36,209.3,8.79922093]
[1756939053629,2.26423372,209.37,209.31,8.79922093]
[1756939053830,7.51,209.36,209.32,8.79922093]
[1756939054025,2.26423372,209.37,209.33,8.79922093]
[1756939054227,7.51,209.36,209.28,7.99]
[1756939054436,7.51,209.36,209.29,8.80211999]
[1756939054635,7.51,209.36,209.3,8.80211999]
[1756939054827,7.51,209.36,209.31,8.80211999]
[1756939055034,52.69,209.36,209.32,16.79211999]
[1756939055334,7.51,209.35,209.33,8.80211999]
[1756939055533,7.51,209.35,209.32,7.99]
[1756939055835,7.51,209.35,209.33,8.80380465]
[1756939056034,7.51,209.35,209.32,7.99]
[1756939056337,7.51,209.35,209.33,8.80414857]
[1756939056635,7.51,209.35,209.34,4.23948381]
[1756939058237,7.51,209.35,209.34,8.80671931]
[1756939061432,7.99,209.35,209.34,8.80671931]
[1756939063334,125.59,209.35,209.34,8.80671931]
[1756939063738,125.59,209.35,209.34,4.23948381]
[1756939064142,125.59,209.35,209.34,8.69719709]
[1756939066537,7.99,209.35,209.34,8.69719709]
[1756939066741,125.53,209.35,209.34,8.69719709]
[1756939068439,125.53,209.35,209.34,8.70854205]
[1756939069446,7.99,209.35,209.34,4.46905824]
[1756939069644,125.45,209.35,209.34,4.46905824]
[1756939072250,7.99,209.35,209.34,4.46905824]
[1756939072749,125.39,209.35,209.34,4.46905824]
[1756939073350,7.99,209.35,209.34,4.46905824]
[1756939073952,7.43,209.37,209.34,4.46905824]
[1756939074154,7.43,209.37,209.35,4.46905824]
[1756939074350,7.43,209.37,209.36,4.46905824]
[1756939075050,124.85,209.37,209.36,4.46905824]
[1756939078255,7.43,209.37,209.36,4.46905824]
[1756939078658,124.77,209.37,209.36,4.46905824]
[1756939080653,124.75,209.37,209.36,4.46905824]
[1756939080849,124.71,209.37,209.36,4.46905824]
[1756939081458,126.28742801,209.37,209.36,4.46905824]
[1756939082058,126.28742801,209.37,209.31,7.25]
[1756939083961,9.00742801,209.37,209.31,7.25]
[1756939084150,117.3,209.36,209.28,7.25]
[1756939086860,9.00742801,209.37,209.28,7.25]
[1756939087059,7.43,209.42,209.34,7.25]
[1756939087265,34.84,209.41,209.35,1.57742801]